Workbook

Sheet Rxn
A1: Reaction
A2: Chemistry Department, Kasetsart Kamphaeng Sane | I2: faasptt@ku.ac.th
B3: passwd 1 = | C3: abc | D3: << type the code | G3: The macro enable is needed
B4: passwd 2 = | D4: << type the code
A5: Chemical Equation
A6: ดุลสมการโดยเติมชนิด จำนวน และสปส. ของแต่ละสาร | E6: =IF(SUMPRODUCT(N9:V9,N9:V9)>0,"Not Balanced !!!",IF(COUNT(E10:M15)>0,"Balanced !","")) -> Balanced !
A7: Types | B7: n | C7: Chemicals | D7: MW | E7: Atom Types Related to the Reaction | N7: Stoichiometry | AI7: C | AJ7: H | AK7: O
E8: C | F8: H | G8: O | N8: =IF(ISTEXT(E8),E8,"") -> C | O8: H | P8: O | AH8: 1 | AI8: 3 | AJ8: 8
D9: AW>> | E9: =IF(ISTEXT(E8),IF(MATCH(E8,AW_id,0),HLOOKUP("AW",AW_tab,MATCH(E8,AW_id,0),0),"?"),"") -> 12.01078 | F9: 1.007947 | G9: 15.99943 | N9: =IF(COUNT(N10:N15)>0,SUM(N10:N12)-SUM(N13:N15),"") -> 0 | O9: =IF(COUNT(O10:O15)>0,SUM(O10:O12)-SUM(O13:O15),"") -> 0 | P9: 0 | X9: Ex1 | Z9: Ex2 | AB9: Ex3 | AD9: Ex4 | AF9: Ex5 | AH9: 5 | AK9: 2
A10: Reactants | B10: 1 | C10: C3H8 | D10: =IF(ISTEXT(C10),IF(COUNT($E10:$M10)>0,SUMPRODUCT($E$9:$M$9,$E10:$M10),"put #"),"") -> 44.095916 | E10: 3 | F10: 8 | N10: =IF(LEN(N$8)>0,$B10*E10,"") -> 3 | O10: 8 | P10: 0 | X10: C3H8 | Z10: CH4 | AB10: KI | AD10: KClO3 | AF10: Cu
B11: 5 | C11: O2 | D11: 31.99886 | G11: 2 | N11: 0 | O11: 0 | P11: 10 | X11: O2 | Z11: O2 | AB11: Pb(NO3)2 | AF11: AgNO3 | AH11: 4 | AJ11: 2 | AK11: 1
N12: 0 | O12: 0 | P12: 0 | AH12: 3 | AI12: 1 | AK12: 2
A13: Products | B13: 4 | C13: H2O | D13: 18.015324 | F13: 2 | G13: 1 | N13: 0 | O13: 8 | P13: 4 | X13: H2O | Z13: CO2 | AB13: PbI2 | AD13: KCl | AF13: Cu(NO3)2
B14: 3 | C14: CO2 | D14: 44.00964 | E14: 1 | G14: 2 | N14: 3 | O14: 0 | P14: 6 | X14: CO2 | Z14: H2O | AB14: KNO3 | AD14: O2 | AF14: Ag | AI14: 1.5 | AK14: =1.5*44.1 -> 66.15
N15: 0 | O15: 0 | P15: 0 | AI15: =1.5*5 -> 7.5 | AK15: =7.5*32 -> 240
A16: เติมข้อมูลลงในช่อง information พิมพ์ "x" ในช่อง limiting (x) สำหรับสารกำหนดปริมาณ
A17: Chemical | B17: Limiting (x) | C17: Information | E17: Answers | I17: Results | J17: Solutions | AI17: =4*1.5 -> 6 | AK17: =6*18.02 -> 108.12
C18: mol | D18: gram | E18: mol | G18: gram | J18: mol | L18: gram | N18: mol | O18: gram | P18: Mol left | Q18: gram left | R18: mol | S18: LR | T18: stp1 | U18: stp2 | V18: stp3 | AI18: =3*1.5 -> 4.5 | AK18: =4.5*44.01 -> 198.045
A19: =IF(AND(LEN(C10)>0,ISNUMBER(B10)),B10&" "&C10,"") -> 1 C3H8 | C19: 1.5 | E19: 1.5 | G19: 66.15 | I19: =IF(AND(ISNUMBER(N19),rxn_pass_1=rxn_key_1,LEN(A19)>0),IF(AND(ABS((J19-E19)/J19)<0.03,ABS((L19-G19)/L19)<0.03),"good","x"),"") -> good | J19: =IF(LEN($N19)>0,N19,"") -> 1.5 | L19: =IF(LEN($A19)>0,O19,"") -> 66.143874 | N19: =IF(ISNUMBER(V19),V19,"") -> 1.5 | O19: =IF(AND(ISNUMBER(D10),ISNUMBER(N19)),N19*D10,"") -> 66.143874 | P19: =IF(AND(ISNUMBER(R19),ISNUMBER(N19)),R19-N19,"") -> 0 | Q19: =IF(AND(ISNUMBER(D10),ISNUMBER(P19)),P19*D10,"") -> 0 | R19: =IF(ISNUMBER(C19),C19,IF(AND(ISNUMBER(D10),ISNUMBER(D19)),D19/D10,"")) -> 1.5 | S19: =IF(OR(COUNT($R$19:$R$24)=1,AND(ISNUMBER(R19),B19="x")),R19,"") -> 1.5 | T19: =IF(LEN($A19)>0,IF(ISNUMBER(S19),S19,IF(AND(ISNUMBER(S20),ISNUMBER($B10),ISNUMBER($B11)),S20/$B11*$B10,IF(AND(ISNUMBER(S21),ISNUMBER($B12),ISNUMBER($B10)),S21/$B12*$B10,IF(AND(ISNUMBER(S22),ISNUMBER($B13),ISNUMBER($B10)),S22/$B13*$B10,"x")))),"?") -> 1.5 | U19: =IF(LEN($A19)>0,IF(T19>0,T19,IF(AND(ISNUMBER(T20),ISNUMBER($B10),ISNUMBER($B11)),T20/$B11*$B10,IF(AND(ISNUMBER(T21),ISNUMBER($B12),ISNUMBER($B10)),T21/$B12*$B10,IF(AND(ISNUMBER(T22),ISNUMBER($B13),ISNUMBER($B10)),T22/$B13*$B10,"x")))),"?") -> 1.5 | V19: =IF(LEN($A19)>0,IF(U19>0,U19,IF(AND(ISNUMBER(U20),ISNUMBER($B10),ISNUMBER($B11)),U20/$B11*$B10,IF(AND(ISNUMBER(U21),ISNUMBER($B12),ISNUMBER($B10)),U21/$B12*$B10,IF(AND(ISNUMBER(U22),ISNUMBER($B13),ISNUMBER($B10)),U22/$B13*$B10,"x")))),"?") -> 1.5 | W19: ทำปฏิกิริยาไปจริง | X19: 1.5 | Z19: 0.5 | AB19: 0.5 | AE19: 50 | AG19: 100
A20: =IF(AND(LEN(C11)>0,ISNUMBER(B11)),B11&" "&C11,"") -> 5 O2 | E20: 7.5 | G20: 240 | I20: =IF(AND(ISNUMBER(N20),rxn_pass_1=rxn_key_1,LEN(A20)>0),IF(AND(ABS((J20-E20)/J20)<0.03,ABS((L20-G20)/L20)<0.03),"good","x"),"") -> good | J20: =IF(LEN($N20)>0,N20,"") -> 7.5 | L20: 239.99145 | N20: 7.5 | O20: 239.99145 | P20: =IF(AND(ISNUMBER(R20),ISNUMBER(N20)),R20-N20,"") ->  | T20: =IF(LEN($A20)>0,IF(ISNUMBER(S20),S20,IF(AND(ISNUMBER(S19),ISNUMBER($B10),ISNUMBER($B11)),S19/$B10*$B11,IF(AND(ISNUMBER(S21),ISNUMBER($B12),ISNUMBER($B11)),S21/$B12*$B11,"x"))),"?") -> 7.5 | U20: =IF(LEN($A20)>0,IF(ISNUMBER(T20),T20,IF(AND(ISNUMBER(T19),ISNUMBER($B10),ISNUMBER($B11)),T19/$B10*$B11,IF(AND(ISNUMBER(T21),ISNUMBER($B12),ISNUMBER($B11)),T21/$B12*$B11,"x"))),"?") -> 7.5 | V20: =IF(LEN($A20)>0,IF(ISNUMBER(U20),U20,IF(AND(ISNUMBER(U19),ISNUMBER($B10),ISNUMBER($B11)),U19/$B10*$B11,IF(AND(ISNUMBER(U21),ISNUMBER($B12),ISNUMBER($B11)),U21/$B12*$B11,"x"))),"?") -> 7.5 | Z20: 3 | AC20: 35 | AE20: 50 | AG20: 20
I21: =IF(AND(ISNUMBER(N21),rxn_pass_1=rxn_key_1,LEN(A21)>0),IF(AND(ABS((J21-E21)/J21)<0.03,ABS((L21-G21)/L21)<0.03),"good","x"),"") ->  | T21: =IF(LEN($A21)>0,IF(ISNUMBER(S21),S21,IF(AND(ISNUMBER(S19),ISNUMBER($B10),ISNUMBER($B12)),S19/$B10*$B12,IF(AND(ISNUMBER(S20),ISNUMBER($B11),ISNUMBER($B12)),S20/$B11*$B12,"x"))),"?") -> ? | U21: =IF(LEN($A21)>0,IF(ISNUMBER(T21),T21,IF(AND(ISNUMBER(T19),ISNUMBER($B10),ISNUMBER($B12)),T19/$B10*$B12,IF(AND(ISNUMBER(T20),ISNUMBER($B11),ISNUMBER($B12)),T20/$B11*$B12,"x"))),"?") -> ? | V21: =IF(LEN($A21)>0,IF(ISNUMBER(U21),U21,IF(AND(ISNUMBER(U19),ISNUMBER($B10),ISNUMBER($B12)),U19/$B10*$B12,IF(AND(ISNUMBER(U20),ISNUMBER($B11),ISNUMBER($B12)),U20/$B11*$B12,"x"))),"?") -> ? | AI21: C | AJ21: H | AK21: O
A22: 4 H2O | E22: 6 | G22: 108.12 | I22: =IF(AND(ISNUMBER(N22),rxn_pass_1=rxn_key_1,LEN(A22)>0),IF(AND(ABS((J22-E22)/J22)<0.03,ABS((L22-G22)/L22)<0.03),"good","x"),"") -> good | J22: 6 | L22: 108.091944 | N22: 6 | O22: 108.091944 | P22: =IF(ISNUMBER(N22),N22,"") -> 6 | Q22: 108.091944 | T22: =IF(LEN($A22)>0,IF(ISNUMBER(S22),S22,IF(AND(ISNUMBER(S23),ISNUMBER($B13),ISNUMBER($B14)),S23/$B14*$B13,IF(AND(ISNUMBER(S24),ISNUMBER($B15),ISNUMBER($B13)),S24/$B15*$B13,IF(AND(ISNUMBER(S19),ISNUMBER($B10),ISNUMBER($B13)),S19/$B10*$B13,"x")))),"?") -> 6 | U22: =IF(LEN($A22)>0,IF(ISNUMBER(T22),T22,IF(AND(ISNUMBER(T23),ISNUMBER($B13),ISNUMBER($B14)),T23/$B14*$B13,IF(AND(ISNUMBER(T24),ISNUMBER($B15),ISNUMBER($B13)),T24/$B15*$B13,IF(AND(ISNUMBER(T19),ISNUMBER($B10),ISNUMBER($B13)),T19/$B10*$B13,"x")))),"?") -> 6 | V22: =IF(LEN($A22)>0,IF(ISNUMBER(U22),U22,IF(AND(ISNUMBER(U23),ISNUMBER($B13),ISNUMBER($B14)),U23/$B14*$B13,IF(AND(ISNUMBER(U24),ISNUMBER($B15),ISNUMBER($B13)),U24/$B15*$B13,IF(AND(ISNUMBER(U19),ISNUMBER($B10),ISNUMBER($B13)),U19/$B10*$B13,"x")))),"?") -> 6 | W22: เกิดขึ้นจากปฏิกิริยา | AH22: 1 | AI22: 1 | AJ22: 4
A23: 3 CO2 | E23: 4.5 | G23: 198.045 | I23: =IF(AND(ISNUMBER(N23),rxn_pass_1=rxn_key_1,LEN(A23)>0),IF(AND(ABS((J23-E23)/J23)<0.03,ABS((L23-G23)/L23)<0.03),"good","x"),"") -> good | J23: 4.5 | L23: 198.04338 | N23: 4.5 | O23: 198.04338 | P23: =IF(ISNUMBER(N23),N23,"") -> 4.5 | Q23: 198.04338 | T23: =IF(LEN($A23)>0,IF(ISNUMBER(S23),S23,IF(AND(ISNUMBER(S22),ISNUMBER($B13),ISNUMBER($B14)),S22/$B13*$B14,IF(AND(ISNUMBER(S24),ISNUMBER($B15),ISNUMBER($B14)),S24/$B15*$B14,"x"))),"?") -> x | U23: =IF(LEN($A23)>0,IF(ISNUMBER(T23),T23,IF(AND(ISNUMBER(T22),ISNUMBER($B13),ISNUMBER($B14)),T22/$B13*$B14,IF(AND(ISNUMBER(T24),ISNUMBER($B15),ISNUMBER($B14)),T24/$B15*$B14,"x"))),"?") -> 4.5 | V23: =IF(LEN($A23)>0,IF(ISNUMBER(U23),U23,IF(AND(ISNUMBER(U22),ISNUMBER($B13),ISNUMBER($B14)),U22/$B13*$B14,IF(AND(ISNUMBER(U24),ISNUMBER($B15),ISNUMBER($B14)),U24/$B15*$B14,"x"))),"?") -> 4.5 | AG23: 30 | AH23: 2 | AK23: 2
I24: =IF(AND(ISNUMBER(N24),rxn_pass_1=rxn_key_1,LEN(A24)>0),IF(AND(ABS((J24-E24)/J24)<0.03,ABS((L24-G24)/L24)<0.03),"good","x"),"") ->  | T24: =IF(LEN($A24)>0,IF(ISNUMBER(S24),S24,IF(AND(ISNUMBER(S22),ISNUMBER($B13),ISNUMBER($B15)),S22/$B13*$B15,IF(AND(ISNUMBER(S23),ISNUMBER($B14),ISNUMBER($B15)),S23/$B14*$B15,"x"))),"?") -> ? | U24: =IF(LEN($A24)>0,IF(ISNUMBER(T24),T24,IF(AND(ISNUMBER(T22),ISNUMBER($B13),ISNUMBER($B15)),T22/$B13*$B15,IF(AND(ISNUMBER(T23),ISNUMBER($B14),ISNUMBER($B15)),T23/$B14*$B15,"x"))),"?") -> ? | V24: =IF(LEN($A24)>0,IF(ISNUMBER(U24),U24,IF(AND(ISNUMBER(U22),ISNUMBER($B13),ISNUMBER($B15)),U22/$B13*$B15,IF(AND(ISNUMBER(U23),ISNUMBER($B14),ISNUMBER($B15)),U23/$B14*$B15,"x"))),"?") -> ?
C25: ทำปฏิกิริยาได้ผลิตภัณฑ์กี่กรัม? | X25: ทำปฏิกิริยาได้ผลิตภัณฑ์กี่กรัม? | Z25: สารใดเป็นสารกำหนดปริมาณ? | AB25: สารใดเป็นสารกำหนดปริมาณ? | AD25: สารใดเป็นสารกำหนดปริมาณ? | AF25: ต้องการผลิตภัณฑ์ Ag 30 g ได้หรือไม่? | AH25: 1 | AI25: 1 | AK25: 2
B26: ñ Red filled cell means the chemical runs out. | AH26: 2 | AJ26: 2 | AK26: 1
AH28: x | AI28: 0.5 | AK28: =0.5*16.04 -> 8.02
AI29: =0.5*2 -> 1 | AK29: =1*32 -> 32
AI31: =1*0.5 -> 0.5 | AK31: =0.5*44.01 -> 22.005
AI32: =2*0.5 -> 1 | AK32: 20

Sheet pass
E11: Solid | F11: Reaction
D12: key1 | E12: abc | F12: abc
D13: key2 | E13: Kasetsart | F13: Kasetsart

Sheet Constant
A3: NA | B3: 6.02e+23
A4: R_latm | B4: 0.082
A5: R_j | B5: 8.314
A12: Element | B12: Name | C12: AW
A13: H | B13: Hydrogen | C13: 1.007947
A14: He | B14: Helium | C14: 4.0026022
A15: Li | B15: Lithium | C15: 6.9412
A16: Be | B16: Beryllium | C16: 9.0121823
A17: B | B17: Boron | C17: 10.8117
A18: C | B18: Carbon | C18: 12.01078
A19: N | B19: Nitrogen | C19: 14.00672
A20: O | B20: Oxygen | C20: 15.99943
A21: F | B21: Fluorine | C21: 18.99840325
A22: Ne | B22: Neon | C22: 20.17976
A23: Na | B23: Sodium | C23: 22.98976928
A24: Mg | B24: Magnesium | C24: 24.30506
A25: Al | B25: Aluminium | C25: 26.98153868
A26: Si | B26: Silicon | C26: 28.08553
A27: P | B27: Phosphorus | C27: 30.9737622
A28: S | B28: Sulfur | C28: 32.0655
A29: Cl | B29: Chlorine | C29: 35.4532
A30: Ar | B30: Argon | C30: 39.9481
A31: K | B31: Potassium | C31: 39.09831
A32: Ca | B32: Calcium | C32: 40.0784
A33: Sc | B33: Scandium | C33: 44.9559126
A34: Ti | B34: Titanium | C34: 47.8671
A35: V | B35: Vanadium | C35: 50.94151
A36: Cr | B36: Chromium | C36: 51.99616
A37: Mn | B37: Manganese | C37: 54.9380455
A38: Fe | B38: Iron | C38: 55.8452
A39: Co | B39: Cobalt | C39: 58.9331955
A40: Ni | B40: Nickel | C40: 58.69342
A41: Cu | B41: Copper | C41: 63.5463
A42: Zn | B42: Zinc | C42: 65.4094
A43: Ga | B43: Gallium | C43: 69.7231
A44: Ge | B44: Germanium | C44: 72.641
A45: As | B45: Arsenic | C45: 74.921602
A46: Se | B46: Selenium | C46: 78.963
A47: Br | B47: Bromine | C47: 79.9041
A48: Kr | B48: Krypton | C48: 83.7982
A49: Rb | B49: Rubidium | C49: 85.46783
A50: Sr | B50: Strontium | C50: 87.621
A51: Y | B51: Yttrium | C51: 88.905852
A52: Zr | B52: Zirconium | C52: 91.2242
A53: Nb | B53: Niobium | C53: 92.906382
A54: Mo | B54: Molybdenum | C54: 95.942
A55: Tc | B55: Technetium | C55: 98
A56: Ru | B56: Ruthenium | C56: 101.072
A57: Rh | B57: Rhodium | C57: 102.905502
A58: Pd | B58: Palladium | C58: 106.421
A59: Ag | B59: Silver | C59: 107.86822
A60: Cd | B60: Cadmium | C60: 112.4118
A61: In | B61: Indium | C61: 114.8183
A62: Sn | B62: Tin | C62: 118.7107
A63: Sb | B63: Antimony | C63: 121.7601
A64: Te | B64: Tellurium | C64: 127.603
A65: I | B65: Iodine | C65: 126.904473
A66: Xe | B66: Xenon | C66: 131.2936
A67: Cs | B67: Caesium | C67: 132.9054519
A68: Ba | B68: Barium | C68: 137.3277
A69: La | B69: Lanthanum | C69: 138.905477
A70: Ce | B70: Cerium | C70: 140.1161
A71: Pr | B71: Praseodymium | C71: 140.907652
A72: Nd | B72: Neodymium | C72: 144.2423
A73: Pm | B73: Promethium | C73: 145
A74: Sm | B74: Samarium | C74: 150.362
A75: Eu | B75: Europium | C75: 151.9641
A76: Gd | B76: Gadolinium | C76: 157.253
A77: Tb | B77: Terbium | C77: 158.925352
A78: Dy | B78: Dysprosium | C78: 162.5001
A79: Ho | B79: Holmium | C79: 164.930322
A80: Er | B80: Erbium | C80: 167.2593
A81: Tm | B81: Thulium | C81: 168.934212
A82: Yb | B82: Ytterbium | C82: 173.043
A83: Lu | B83: Lutetium | C83: 174.9671
A84: Hf | B84: Hafnium | C84: 178.492
A85: Ta | B85: Tantalum | C85: 180.947882
A86: W | B86: Tungsten | C86: 183.841
A87: Re | B87: Rhenium | C87: 186.2071
A88: Os | B88: Osmium | C88: 190.233
A89: Ir | B89: Iridium | C89: 192.2173
A90: Pt | B90: Platinum | C90: 195.0849
A91: Au | B91: Gold | C91: 196.9665694
A92: Hg | B92: Mercury | C92: 200.592
A93: Tl | B93: Thallium | C93: 204.38332
A94: Pb | B94: Lead | C94: 207.21
A95: Bi | B95: Bismuth | C95: 208.980401
A96: Po | B96: Polonium | C96: 209
A97: At | B97: Astatine | C97: 210
A98: Rn | B98: Radon | C98: 222
A99: Fr | B99: Francium | C99: 223
A100: Ra | B100: Radium | C100: 226
A101: Ac | B101: Actinium | C101: 227
A102: Th | B102: Thorium | C102: 232.038062
A103: Pa | B103: Protactinium | C103: 231.035882
A104: U | B104: Uranium | C104: 238.028913
A105: Np | B105: Neptunium | C105: 237
A106: Pu | B106: Plutonium | C106: 244
A107: Am | B107: Americium | C107: 243
A108: Cm | B108: Curium | C108: 247
A109: Bk | B109: Berkelium | C109: 247
A110: Cf | B110: Californium | C110: 251
A111: Es | B111: Einsteinium | C111: 252
A112: Fm | B112: Fermium | C112: 257
A113: Md | B113: Mendelevium | C113: 258
A114: No | B114: Nobelium | C114: 259
A115: Lr | B115: Lawrencium | C115: 262
A116: Rf | B116: Rutherfordium | C116: 261
A117: Db | B117: Dubnium | C117: 262
A118: Sg | B118: Seaborgium | C118: 266
A119: Bh | B119: Bohrium | C119: 264
A120: Hs | B120: Hassium | C120: 277
A121: Mt | B121: Meitnerium | C121: 268
A122: Ds | B122: Darmstadtium | C122: 281
A123: Rg | B123: Roentgenium | C123: 272
A124: Uub | B124: Ununbium | C124: 285
A125: Uut | B125: Ununtrium | C125: 284
A126: Uuq | B126: Ununquadium | C126: 289
A127: Uup | B127: Ununpentium | C127: 288
A128: Uuh | B128: Ununhexium | C128: 291
A129: Uuo | B129: Ununoctium | C129: 294
